fUST/lending_fUST_20250519
["ID","MTS","AMOUNT","RATE_DAILY","PERIOD"]
[361516601,1747594240669,-487.06,0.00013835,2]
[361516603,1747594240678,-450.0,0.00013835,2]
[361516605,1747594240691,-783.81,0.00013835,2]
[361516607,1747594240701,-450.0,0.00013835,2]
[361516609,1747594240711,-550.84,0.00013835,2]
[361516611,1747594240720,-450.0,0.00013835,2]
[361516613,1747594240730,-450.0,0.00013835,2]
[361516615,1747594240740,-450.0,0.00013835,2]
[361516617,1747594240749,-450.0,0.00013835,2]
[361516619,1747594240760,-581.31,0.00013835,2]
[361516621,1747594240769,-450.0,0.00013835,2]
[361516623,1747594240779,-164.5046724,0.00013835,2]
[361516648,1747594240994,-13.20339017,0.00013835,2]
[361516650,1747594241004,-450.0,0.00013835,2]
[361516652,1747594241016,-450.0,0.00013835,2]
[361516654,1747594241025,-450.0,0.00013835,2]
[361516656,1747594241035,-450.0,0.00013835,2]
[361516658,1747594241044,-251.30220343,0.00013835,2]
[361516660,1747594241056,-198.69779657,0.00013835,2]
[361516662,1747594241065,-450.0,0.00013835,2]
[361516664,1747594241074,-402.57964765,0.00013835,2]
[361516666,1747594241084,-450.0,0.00013835,2]
[361516668,1747594241093,-450.0,0.00013835,2]
[361516670,1747594241102,-450.0,0.00013835,2]
[361516672,1747594241111,-340.43332436,0.00013835,2]
[361516674,1747594241120,-450.0,0.00013835,2]
[361516676,1747594241129,-450.0,0.00013835,2]
[361516678,1747594241139,-628.15,0.00013835,2]
[361516680,1747594241147,-450.0,0.00013835,2]
[361516682,1747594241156,-450.0,0.00013835,2]
[361516684,1747594241165,-363.3878261,0.000139,2]
[361516685,1747594241174,-363.3878261,0.000139,2]
[361516686,1747594241183,-289.33047588,0.000139,2]
[361516687,1747594241194,-346.66952412,0.000139,2]
[361516688,1747594241203,-361.89,0.00013972,2]
[361516689,1747594241213,-450.0,0.00013972,2]
[361516690,1747594241222,-450.0,0.00013972,2]
[361516691,1747594241231,-450.0,0.00013972,2]
[361516693,1747594241240,-151.0,0.00013972,2]
[361516694,1747594241249,-450.0,0.00013972,2]
[361516695,1747594241259,-450.0,0.00013972,2]
[361516696,1747594241268,-450.0,0.00013972,2]
[361516697,1747594241277,-450.0,0.00013972,2]
[361516698,1747594241286,-239.12,0.00013972,2]
[361516699,1747594241295,-151.0,0.00013972,2]
[361516700,1747594241304,-280.293886,0.00013972,2]
[361516701,1747594241314,-450.0,0.00013972,2]
[361516702,1747594241323,-450.0,0.00013972,2]
[361516703,1747594241331,-519.51506346,0.00013972,2]
[361516704,1747594241341,-403.64829231,0.00013972,2]
[361516705,1747594241350,-232.03213818,0.00013972,2]
[361516706,1747594241359,-450.0,0.00013972,2]
[361516707,1747594241368,-450.0,0.00013972,2]
[361516708,1747594241378,-450.0,0.00013972,2]
[361516709,1747594241387,-351.4977277,0.00013972,2]
[361516710,1747594241397,-450.0,0.00013972,2]
[361516711,1747594241406,-407.46546862,0.00013972,2]
[361516712,1747594241415,-450.0,0.00013972,2]
[361516713,1747594241424,-450.0,0.00013972,2]
[361516714,1747594241433,-450.0,0.00013972,2]
[361516715,1747594241443,-450.0,0.00013972,2]
[361516716,1747594241452,-450.0,0.00013972,2]
[361516717,1747594241462,-450.0,0.00013972,2]
[361516718,1747594241471,-271.18,0.00013972,2]
[361516719,1747594241480,-450.0,0.00013972,2]
[361516720,1747594241490,-450.0,0.00013972,2]
[361516721,1747594241499,-201.77,0.00013972,2]
[361516722,1747594241509,-450.0,0.00013972,2]
[361516723,1747594241518,-450.0,0.00013972,2]
[361516724,1747594241527,-450.0,0.00013972,2]
[361516725,1747594241537,-450.0,0.00013972,2]
[361516726,1747594241546,-450.0,0.00013972,2]
[361516727,1747594241556,-450.0,0.00013972,2]
[361516728,1747594241565,-450.0,0.00013972,2]
[361516729,1747594241575,-450.0,0.00013972,2]
[361516730,1747594241584,-450.0,0.00013972,2]
[361516731,1747594241593,-246.85735218,0.00013972,2]
[361516732,1747594241602,-450.0,0.00013972,2]
[361516733,1747594241611,-450.0,0.00013972,2]
[361516734,1747594241621,-450.0,0.00013972,2]
[361516735,1747594241630,-450.0,0.00013972,2]
[361516736,1747594241640,-450.0,0.00013972,2]
[361516737,1747594241649,-450.0,0.00013972,2]
[361516738,1747594241659,-302.85,0.00013972,2]
[361516739,1747594241668,-450.0,0.00013972,2]
[361516740,1747594241680,-450.0,0.00013972,2]
[361516741,1747594241691,-450.0,0.00013972,2]
[361516742,1747594241701,-450.0,0.00013972,2]
[361516743,1747594241710,-456.87,0.00013972,2]
[361516744,1747594241720,-450.0,0.00013972,2]
[361516745,1747594241730,-450.0,0.00013972,2]
[361516746,1747594241740,-450.0,0.00013972,2]
[361516747,1747594241750,-469.0,0.00013972,2]
[361516748,1747594241762,-450.0,0.00013972,2]
[361516749,1747594241771,-477.16,0.00013972,2]
[361516750,1747594241780,-450.0,0.00013972,2]
[361516751,1747594241790,-450.0,0.00013972,2]
[361516752,1747594241799,-192.08457298,0.00013972,2]
[361516753,1747594241809,-450.0,0.00013972,2]
[361516754,1747594241820,-450.0,0.00013972,2]
[361516755,1747594241829,-450.0,0.00013972,2]
[361516756,1747594241838,-450.0,0.00013972,2]
[361516757,1747594241848,-450.0,0.00013972,2]
[361516758,1747594241857,-518.27,0.00013972,2]
[361516759,1747594241866,-203.65334259,0.00013972,2]
[361516760,1747594241876,-450.0,0.00013972,2]
[361516761,1747594241885,-450.0,0.00013972,2]
[361516762,1747594241894,-450.0,0.00013972,2]
[361516763,1747594241904,-450.0,0.00013972,2]
[361516764,1747594241913,-450.0,0.00013972,2]
[361516765,1747594241923,-450.0,0.00013972,2]
[361516766,1747594241932,-450.0,0.00013972,2]
[361516767,1747594241941,-450.0,0.00013972,2]
[361516768,1747594241951,-450.0,0.00013972,2]
[361516769,1747594241961,-450.0,0.00013972,2]
[361516770,1747594241971,-450.0,0.00013972,2]
[361516771,1747594241980,-450.0,0.00013972,2]
[361516772,1747594241990,-450.0,0.00013972,2]
[361516773,1747594241999,-151.0,0.00013972,2]
[361516774,1747594242009,-327.14,0.00013972,2]
[361516775,1747594242018,-151.0,0.00013972,2]
[361516776,1747594242028,-450.0,0.00013972,2]
[361516777,1747594242037,-450.0,0.00013972,2]
[361516778,1747594242047,-162.50342,0.00013972,2]
[361516779,1747594242057,-450.0,0.00013972,2]
[361516780,1747594242067,-209.77138592,0.00013972,2]
[361516781,1747594242077,-450.0,0.00013972,2]
[361516782,1747594242086,-450.0,0.00013972,2]
[361516783,1747594242096,-450.0,0.00013972,2]
[361516784,1747594242105,-450.0,0.00013972,2]
[361516785,1747594242115,-450.0,0.00013972,2]
[361516786,1747594242125,-450.0,0.00013972,2]
[361516787,1747594242135,-450.0,0.00013972,2]
[361516788,1747594242154,-450.0,0.00013972,2]
[361516789,1747594242170,-297.2917065,0.00013972,2]
[361516790,1747594242186,-152.7082935,0.00013972,2]
[361516791,1747594242196,-450.0,0.00013972,2]
[361516792,1747594242206,-342.2917065,0.00013972,2]
[361516818,1747594243398,-300.0,0.00013347,2]
[361516821,1747594243408,-450.0,0.00013698,2]
[361516823,1747594243417,-236.87,0.00013835,2]
[361516825,1747594243427,-510.38564359,0.00013918,2]
[361516827,1747594243436,-211.4782935,0.00013972,2]
[361516829,1747594243446,-450.0,0.00013972,2]
[361516831,1747594243456,-346.69407913,0.00013972,2]
[361516833,1747594243468,-103.30592087,0.00013972,2]
[361516835,1747594243477,-858.43,0.00013972,2]
[361516836,1747594243486,-450.0,0.00013972,2]
[361516837,1747594243496,-375.60244509,0.00013972,2]
[361516838,1747594243505,-450.0,0.00013972,2]
[361516839,1747594243516,-533.05245774,0.00013972,2]
[361516840,1747594243527,-38.79754226,0.00013972,2]
[361516841,1747594243537,-450.0,0.00013972,2]
[361516842,1747594243546,-427.06,0.00013972,2]
[361516843,1747594243555,-442.01732202,0.00013972,2]
[361516844,1747594243565,-450.0,0.00013972,2]
[361516845,1747594243574,-450.0,0.00013972,2]
[361516846,1747594243583,-450.0,0.00013972,2]
[361516847,1747594243592,-450.0,0.00013972,2]
[361516848,1747594243602,-450.0,0.00013972,2]
[361516849,1747594243611,-450.0,0.00013972,2]
[361516850,1747594243620,-98.52723818,0.00013972,2]
[361516851,1747594243632,-351.47276182,0.00013972,2]
[361516852,1747594243641,-5220.42,0.00013972,2]
[361516853,1747594243651,-450.0,0.00013972,2]
[361516854,1747594243660,-285.37,0.00013972,2]
[361516855,1747594243670,-389.43,0.00013972,2]
[361516856,1747594243679,-586.9,0.00013972,2]
[361516857,1747594243692,-157.65951359,0.00013972,2]
[361516858,1747594243701,-510.00217005,0.00013972,2]
[361516859,1747594243710,-450.0,0.00013972,2]
[361516860,1747594243719,-450.0,0.00013972,2]
[361516861,1747594243730,-450.0,0.00013972,2]
[361516862,1747594243739,-372.12261426,0.00013972,2]
[361516863,1747594243748,-450.0,0.00013972,2]
[361516864,1747594243759,-399.183922,0.00013972,2]
[361516865,1747594243768,-450.0,0.00013972,2]
[361516866,1747594243777,-398.58636822,0.00013972,2]
[361516867,1747594243786,-450.0,0.00013972,2]
[361516868,1747594243796,-450.0,0.00013972,2]
[361516869,1747594243805,-450.0,0.00013972,2]
[361516870,1747594243815,-450.0,0.00013972,2]
[361516871,1747594243824,-450.0,0.00013972,2]
[361516872,1747594243833,-450.0,0.00013972,2]
[361516873,1747594243842,-450.0,0.00013972,2]
[361516874,1747594243852,-450.0,0.00013972,2]
[361516875,1747594243861,-450.0,0.00013972,2]
[361516876,1747594243872,-450.0,0.00013972,2]
[361516877,1747594243881,-450.0,0.00013972,2]
[361516878,1747594243891,-450.0,0.00013972,2]
[361516879,1747594243900,-450.0,0.00013972,2]
[361516880,1747594243910,-450.0,0.00013972,2]
[361516881,1747594243919,-450.0,0.00013972,2]
[361516882,1747594243929,-495.45,0.00013972,2]
[361516883,1747594243939,-450.0,0.00013972,2]
[361516884,1747594243948,-450.0,0.00013972,2]
[361516885,1747594243958,-730.3,0.00013972,2]
[361516886,1747594243968,-499.28,0.00013972,2]
[361516887,1747594243977,-450.0,0.00013972,2]
[361516888,1747594243986,-450.0,0.00013972,2]
[361516889,1747594243995,-537.51,0.00013972,2]
[361516890,1747594244004,-450.0,0.00013972,2]
[361516891,1747594244014,-450.0,0.00013972,2]
[361516892,1747594244024,-450.0,0.00013972,2]
[361516893,1747594244033,-450.0,0.00013972,2]
[361516894,1747594244042,-450.0,0.00013972,2]
[361516895,1747594244051,-450.0,0.00013972,2]
[361516896,1747594244060,-552.0,0.00013972,2]
[361516897,1747594244070,-656.97,0.00013972,2]
[361516898,1747594244079,-513.5574661,0.00013972,2]
[361516899,1747594244088,-450.0,0.00013972,2]
[361516900,1747594244098,-3707.2,0.00013972,2]
[361516901,1747594244107,-450.0,0.00013972,2]
[361516902,1747594244116,-450.0,0.00013972,2]
[361516906,1747594244222,-157.27,0.00013972,2]
[361516907,1747594244237,-372.6,0.00013972,2]
[361516908,1747594244246,-450.0,0.00013972,2]
[361516909,1747594244255,-450.0,0.00013972,2]
[361516910,1747594244266,-569.85,0.00013972,2]
[361516911,1747594244276,-450.0,0.00013972,2]
[361516912,1747594244286,-304.92196697,0.00013972,2]
[361516913,1747594244295,-300.64336634,0.00013972,2]
[361517321,1747594249348,-0.53024051,0.00013561,2]
[361517323,1747594249364,-449.46975949,0.00013561,2]
[361517325,1747594249374,-450.0,0.00013698,2]
[361517327,1747594249383,-513.54,0.00013698,2]
[361517329,1747594249392,-472.24322305,0.00013698,2]
[361517331,1747594249401,-400.0,0.00013698,2]
[361517333,1747594249411,-513.54,0.00013835,2]
[361517335,1747594249420,-47.78544516,0.00013972,2]
[361517770,1747594449112,305.0,0.00011779,2]
[361517771,1747594466184,-4695.0,0.00011779,2]
[361517772,1747594478787,305.0,0.00011779,2]
[361517773,1747594534743,-4695.0,0.00011779,2]
[361517774,1747594537457,264.0,0.00011779,2]
[361517780,1747594604922,-4736.0,0.00011779,2]
[361517781,1747594610822,287.0,0.00011779,2]
[361517782,1747594672692,-4713.0,0.00011779,2]
[361517783,1747594682451,305.0,0.00011779,2]
[361517784,1747594742066,-4695.0,0.00011779,2]
[361517785,1747594742086,-310.55298334,0.00011779,2]
[361517786,1747594742106,-946.44701666,0.00011944,2]
[361517833,1747595432335,-118.21633214,0.00011944,2]
[361517835,1747595432345,-555.2955501,0.00012298,2]
[361517837,1747595432355,-300.0,0.00012697,2]
[361517839,1747595432364,-300.0,0.00012697,2]
[361517841,1747595432374,-1200.0,0.00012697,2]
[361517843,1747595432383,-24900.0,0.00012698,2]
[361517845,1747595432392,-5780.15828888,0.000134,2]
[361517847,1747595432402,-1118.33708905,0.00013498,2]
[361517849,1747595432412,-154.18501735,0.00013598,2]
[361517851,1747595432421,-319.02160415,0.000136,2]
[361517853,1747595432430,-363.3878261,0.000136,2]
[361517855,1747595432440,-151.0,0.0001369,2]
[361517857,1747595432450,-207.4,0.0001369,2]
[361517858,1747595432459,-500.0,0.00013697,2]
[361517860,1747595432468,-500.0,0.00013697,2]
[361517862,1747595432478,-500.0,0.00013697,2]
[361517864,1747595432488,-500.0,0.00013697,2]
[361517866,1747595432497,-500.0,0.00013697,2]
[361517868,1747595432507,-500.0,0.00013697,2]
[361517870,1747595432516,-500.0,0.00013697,2]
[361517872,1747595432525,-500.0,0.00013697,2]
[361517874,1747595432535,-500.0,0.00013697,2]
[361517876,1747595432545,-500.0,0.00013697,2]
[361517878,1747595432555,-500.0,0.00013697,2]
[361517880,1747595432565,-500.0,0.00013697,2]
[361517882,1747595432574,-103.47702584,0.00013697,2]
[361518429,1747595438241,-300.0,0.00013696,2]
[361518431,1747595438251,-373.83803209,0.00013697,2]
[361518925,1747595443434,-22.68494207,0.00013697,2]
[361518927,1747595443444,-500.0,0.00013697,2]
[361518929,1747595443453,-500.0,0.00013697,2]
[361518931,1747595443463,-500.0,0.00013697,2]
[361518933,1747595443474,-198.56961733,0.00013697,2]
[361518935,1747595443483,-500.0,0.00013697,2]
[361518938,1747595443493,-500.0,0.00013697,2]
[361518941,1747595443502,-500.0,0.00013697,2]
[361518943,1747595443512,-500.0,0.00013697,2]
[361518945,1747595443521,-554.11138298,0.00013697,2]
[361518947,1747595443531,-507.84553948,0.00013697,2]
[361518949,1747595443541,-500.0,0.00013697,2]
[361518951,1747595443551,-500.0,0.00013697,2]
[361518953,1747595443563,-500.0,0.00013697,2]
[361518955,1747595443572,-500.0,0.00013697,2]
[361518957,1747595443582,-500.0,0.00013697,2]
[361518959,1747595443593,-500.0,0.00013697,2]
[361518962,1747595443606,-220.51534468,0.00013697,2]
[361518964,1747595443615,-295.39217797,0.00013697,2]
[361518983,1747595443625,-500.0,0.00013697,2]
[361518985,1747595443805,-500.0,0.00013697,2]
[361518987,1747595443814,-500.0,0.00013697,2]
[361518989,1747595443824,-500.0,0.00013697,2]
[361518991,1747595443834,-500.0,0.00013697,2]
[361518993,1747595443843,-500.0,0.00013697,2]
[361518995,1747595443853,-500.0,0.00013697,2]
[361518997,1747595443862,-500.0,0.00013697,2]
[361518999,1747595443871,-500.0,0.00013697,2]
[361519001,1747595443880,-300.0,0.00013697,2]
[361519003,1747595443890,-500.0,0.00013697,2]
[361519005,1747595443900,-500.0,0.00013697,2]
[361519007,1747595443910,-484.63810211,0.00013697,2]
[361519009,1747595443919,-363.12732034,0.00013697,2]
[361519011,1747595443929,-400.0,0.00013698,2]
[361519013,1747595443939,-450.0,0.00013698,2]
[361519016,1747595443949,-400.0,0.00013698,2]
[361519017,1747595443959,-264.16613762,0.00013698,2]
[361519019,1747595443968,-450.0,0.00013698,2]
[361519021,1747595443977,-400.0,0.00013698,2]
[361519023,1747595443987,-450.0,0.00013698,2]
[361519026,1747595443998,-400.0,0.00013698,2]
[361519028,1747595444008,-400.0,0.00013698,2]
[361519030,1747595444018,-450.0,0.00013698,2]
[361519031,1747595444028,-400.92467331,0.00013698,2]
[361519034,1747595444038,-401.71574444,0.00013698,2]
[361519036,1747595444048,-450.0,0.00013698,2]
[361519037,1747595444058,-451.73171211,0.00013698,2]
[361519039,1747595444068,-207.45238772,0.00013698,2]
[361519041,1747595444078,-450.0,0.00013698,2]
[361519043,1747595444088,-450.0,0.00013698,2]
[361519046,1747595444098,-450.0,0.00013698,2]
[361519047,1747595444107,-450.0,0.00013698,2]
[361519049,1747595444117,-400.0,0.00013698,2]
[361519051,1747595444126,-450.0,0.00013698,2]
[361519054,1747595444137,-450.0,0.00013698,2]
[361519056,1747595444148,-450.0,0.00013698,2]
[361519057,1747595444161,-202.22291583,0.00013698,2]
[361519060,1747595444171,-400.0,0.00013698,2]
[361519062,1747595444181,-450.0,0.00013698,2]
[361519063,1747595444190,-450.0,0.00013698,2]
[361519065,1747595444200,-450.0,0.00013698,2]
[361519067,1747595444210,-400.0,0.00013698,2]
[361519069,1747595444219,-450.0,0.00013698,2]
[361519071,1747595444229,-450.0,0.00013698,2]
[361519074,1747595444239,-450.0,0.00013698,2]
[361519076,1747595444249,-450.0,0.00013698,2]
[361519078,1747595444259,-504.51640924,0.00013698,2]
[361519080,1747595444268,-423.64732987,0.00013698,2]
[361519081,1747595444278,-350.0,0.00013698,2]
[361519083,1747595444287,-400.0,0.00013698,2]
[361519085,1747595444296,-450.0,0.00013698,2]
[361519087,1747595444308,-450.0,0.00013698,2]
[361519089,1747595444319,-400.0,0.00013698,2]
[361519091,1747595444328,-450.0,0.00013698,2]
[361519093,1747595444337,-400.0,0.00013698,2]
[361519095,1747595444347,-450.0,0.00013698,2]
[361519097,1747595444357,-223.58426787,0.00013698,2]
[361519099,1747595444366,-403.08616608,0.00013698,2]
[361519101,1747595444376,-450.0,0.00013698,2]
[361519103,1747595444386,-450.0,0.00013698,2]
[361519105,1747595444396,-450.0,0.00013698,2]
[361519107,1747595444406,-500.0,0.00013698,2]
[361519110,1747595444415,-450.0,0.00013698,2]
[361519112,1747595444425,-450.0,0.00013698,2]
[361519114,1747595444434,-450.0,0.00013698,2]
[361519116,1747595444444,-450.0,0.00013698,2]
[361519118,1747595444454,-450.0,0.00013698,2]
[361519120,1747595444465,-450.0,0.00013698,2]
[361519122,1747595444475,-450.0,0.00013698,2]
[361519124,1747595444484,-450.0,0.00013698,2]
[361519126,1747595444495,-400.0,0.00013698,2]
[361519128,1747595444504,-450.0,0.00013698,2]
[361519130,1747595444514,-450.0,0.00013698,2]
[361519132,1747595444524,-500.0,0.00013698,2]
[361519134,1747595444534,-200.0,0.00013698,2]
[361519136,1747595444543,-450.0,0.00013698,2]
[361519138,1747595444553,-400.0,0.00013698,2]
[361519139,1747595444564,-450.0,0.00013698,2]
[361519141,1747595444574,-450.0,0.00013698,2]
[361519144,1747595444583,-450.0,0.00013698,2]
[361519145,1747595444593,-450.0,0.00013698,2]
[361519147,1747595444603,-516.0483265,0.00013698,2]
[361519149,1747595444613,-400.0,0.00013698,2]
[361519152,1747595444624,-400.0,0.00013698,2]
[361519153,1747595444633,-450.0,0.00013698,2]
[361519155,1747595444643,-400.0,0.00013698,2]
[361519157,1747595444652,-450.0,0.00013698,2]
[361519160,1747595444662,-450.0,0.00013698,2]
[361519162,1747595444672,-239.15417733,0.00013698,2]
[361519164,1747595444682,-544.91,0.00013698,2]
[361519165,1747595444691,-400.0,0.00013698,2]
[361519167,1747595444701,-400.0,0.00013698,2]
[361519170,1747595444711,-450.0,0.00013698,2]
[361519172,1747595444720,-450.0,0.00013698,2]
[361519174,1747595444730,-448.16562938,0.00013698,2]
[361519176,1747595444739,-450.0,0.00013698,2]
[361519177,1747595444748,-400.0,0.00013698,2]
[361519179,1747595444758,-450.0,0.00013698,2]
[361519181,1747595444768,-450.0,0.00013698,2]
[361519183,1747595444778,-450.0,0.00013698,2]
[361519185,1747595444788,-450.0,0.00013698,2]
[361519187,1747595444797,-550.0,0.00013698,2]
[361519190,1747595444809,-450.0,0.00013698,2]
[361519192,1747595444819,-450.0,0.00013698,2]
[361519194,1747595444829,-400.0,0.00013698,2]
[361519195,1747595444839,-450.0,0.00013698,2]
[361519198,1747595444848,-550.0,0.00013698,2]
[361519200,1747595444858,-450.0,0.00013698,2]
[361519201,1747595444868,-450.0,0.00013698,2]
[361519204,1747595444878,-400.0,0.00013698,2]
[361519206,1747595444887,-400.0,0.00013698,2]
[361519207,1747595444897,-442.03350281,0.00013698,2]
[361519209,1747595444906,-450.0,0.00013698,2]
[361519211,1747595444916,-450.0,0.00013698,2]
[361519213,1747595444926,-450.0,0.00013698,2]
[361519215,1747595444936,-450.0,0.00013698,2]
[361519217,1747595444945,-450.0,0.00013698,2]
[361519219,1747595444954,-400.0,0.00013698,2]
[361519222,1747595444966,-450.0,0.00013698,2]
[361519224,1747595444975,-400.0,0.00013698,2]
[361519226,1747595444985,-400.0,0.00013698,2]
[361519228,1747595444994,-116.05957508,0.00013698,2]
[361519380,1747595446587,-310.07906757,0.00013698,2]
[361519383,1747595446599,-23.86135735,0.00013698,2]
[361519385,1747595446608,-400.0,0.00013698,2]
[361519387,1747595446617,-450.0,0.00013698,2]
[361519389,1747595446627,-290.48300147,0.00013698,2]
[361520255,1747596632480,-263.0086757,0.0001193,2]
[361520256,1747596632490,-463.5854835,0.00012108,2]
[361520257,1747596632500,-3393.5498378,0.00012304,2]
[361520259,1747596632510,-263.0086757,0.00012545,2]
[361520261,1747596632521,-1200.0,0.00012786,2]
[361520263,1747596632532,-300.0,0.00012787,2]
[361520265,1747596632542,-300.0,0.00012787,2]
[361520267,1747596632553,-24900.0,0.00012788,2]
[361520269,1747596632564,-207.4,0.00013134,2]
[361520271,1747596632578,-151.0,0.00013134,2]
[361520273,1747596632588,-152.36152842,0.000135,2]
[361520275,1747596632599,-158.0682864,0.000135,2]
[361520277,1747596632609,-249.95650286,0.00013598,2]
[361520279,1747596632624,-20298.06100962,0.000136,2]
[361520291,1747596632708,-2011.25666435,0.000136,2]
[361520293,1747596632718,-652.84442803,0.0001366,2]
[361520295,1747596632727,-200.78811658,0.0001369,2]
[361520297,1747596632736,-999.92556039,0.00013697,2]
[361520299,1747596632746,-500.0,0.00013697,2]
[361520301,1747596632755,-500.0,0.00013697,2]
[361520303,1747596632764,-311.72251862,0.00013697,2]
[361520305,1747596632774,-554.31381588,0.00013697,2]
[361520307,1747596632784,-531.31885424,0.00013697,2]
[361520309,1747596632793,-500.0,0.00013697,2]
[361520311,1747596632802,-455.28852389,0.00013697,2]
[361520313,1747596632811,-500.0,0.00013697,2]
[361520315,1747596632823,-500.0,0.00013697,2]
[361520317,1747596632832,-500.0,0.00013697,2]
[361520319,1747596632841,-400.0,0.00013698,2]
[361520321,1747596632850,-450.0,0.00013698,2]
[361520323,1747596632859,-450.0,0.00013698,2]
[361520326,1747596632877,-450.0,0.00013698,2]
[361520328,1747596632888,-450.0,0.00013698,2]
[361520330,1747596632898,-400.85692695,0.00013698,2]
[361520333,1747596632908,-450.0,0.00013698,2]
[361520335,1747596632917,-450.0,0.00013698,2]
[361520337,1747596632927,-450.0,0.00013698,2]
[361520359,1747596633140,-450.0,0.00013698,2]
[361520361,1747596633150,-450.0,0.00013698,2]
[361520363,1747596633160,-400.0,0.00013698,2]
[361520365,1747596633170,-474.16,0.00013698,2]
[361520367,1747596633179,-450.0,0.00013698,2]
[361520369,1747596633188,-450.0,0.00013698,2]
[361520371,1747596633198,-450.0,0.00013698,2]
[361520373,1747596633208,-504.93973424,0.00013698,2]
[361520375,1747596633218,-450.0,0.00013698,2]
[361520377,1747596633228,-450.0,0.00013698,2]
[361520379,1747596633238,-400.0,0.00013698,2]
[361520381,1747596633247,-400.0,0.00013698,2]
[361520383,1747596633258,-450.0,0.00013698,2]
[361520385,1747596633269,-400.0,0.00013698,2]
[361520387,1747596633278,-450.0,0.00013698,2]
[361520389,1747596633288,-450.0,0.00013698,2]
[361520391,1747596633298,-450.0,0.00013698,2]
[361520393,1747596633308,-450.0,0.00013698,2]
[361520395,1747596633319,-400.0,0.00013698,2]
[361520397,1747596633328,-511.54063522,0.00013698,2]
[361520399,1747596633339,-262.1032523,0.00013698,2]
[361520401,1747596633349,-450.0,0.00013698,2]
[361520403,1747596633359,-450.0,0.00013698,2]
[361520405,1747596633369,-450.0,0.00013698,2]
[361520407,1747596633379,-400.0,0.00013698,2]
[361520409,1747596633388,-450.0,0.00013698,2]
[361520411,1747596633397,-450.0,0.00013698,2]
[361520413,1747596633406,-450.0,0.00013698,2]
[361520415,1747596633416,-400.0,0.00013698,2]
[361520417,1747596633425,-400.0,0.00013698,2]
[361520419,1747596633435,-400.0,0.00013698,2]
[361520421,1747596633444,-450.0,0.00013698,2]
[361520423,1747596633453,-400.0,0.00013698,2]
[361520425,1747596633464,-435.52,0.00013698,2]
[361520427,1747596633473,-400.0,0.00013698,2]
[361520429,1747596633483,-400.0,0.00013698,2]
[361520431,1747596633492,-450.0,0.00013698,2]
[361520433,1747596633501,-450.0,0.00013698,2]
[361520435,1747596633511,-450.0,0.00013698,2]
[361520437,1747596633522,-400.0,0.00013698,2]
[361520439,1747596633532,-450.0,0.00013698,2]
[361520441,1747596633542,-450.0,0.00013698,2]
[361520442,1747596633552,-500.0,0.00013698,2]
[361520443,1747596633561,-400.0,0.00013698,2]
[361520444,1747596633574,-400.0,0.00013698,2]
[361520445,1747596633583,-500.0,0.00013698,2]